Cogmind - Beta 17 --- EXPLORER MODE // 2026.06.29 @ 18:55:26 Player: Karp Result: Destroyed by Y-54 Guardian with Gatling Laser Performance ------------- Evolutions (3) 1500 Regions Visited (5) 1000 Robots Destroyed (6) 30 Value Destroyed (274) 274 Prototype IDs (1) 20 Alien Tech Used (0) 0 Bonus (470) 470 TOTAL SCORE: 3294 Bonus ------- Pacifist 470 Cogmind --------- Core Integrity 0/700 Matter 204/300 Energy 99/100 System Corruption 5% Temperature Cool (18) Movement Core (50) Location -7/Storage Parts ------- > --- POWER (1) -------- (None) > --- PROPULSION (2) --- (None) > --- UTILITY (9) ------ Advanced Terrain Scan Processor Advanced Targeting Computer Target Analyzer > --- WEAPON (2) ------- (None) > --- INVENTORY (5) ---- Carbon-fiber Leg Carbon-fiber Leg Improved Sensor Array Target Analyzer Particle Gun Peak State ------------ > --- POWER ------------ Light Deuterium Engine > --- PROPULSION ------- Flight Unit Cesium-ion Thruster > --- UTILITY ---------- Weight Redist. System Improved Sensor Array Advanced Terrain Scan Processor Seismic Detector Advanced Targeting Computer Target Analyzer Utility Shielding > --- WEAPON ----------- Shock Rifle High-powered Shotgun > --- INVENTORY -------- Carbon-fiber Leg Carbon-fiber Leg Improved Sensor Array Target Analyzer Particle Gun [Rating: 31] Favorites ----------- Power Light Ion Engine Engine Light Ion Engine Power Core Light Nuclear Core Propulsion Flight Unit Leg Carbon-fiber Leg Wheel Armored Huge Wheel Flight Unit Flight Unit Utility Target Analyzer Device Improved Sensor Array Processor Target Analyzer Protection Utility Shielding Weapon High-powered Shotgun Energy Gun Particle Gun Energy Cannon Improved EM Pulse Cannon Ballistic Gun High-powered Shotgun Ballistic Cannon Assault Cannon Special Melee Weapon Datajack Build | -11 -10 -9 -8 -7 -7 ------- Run | Yrd Mat Mat Mat Fac Sto Slots Evolved 7 | . 1 2 2 2 . Power . | . . . . . . Propulsion . | . . . . . . Utility 7 | . 1 2 2 2 . Weapon . | . . . . . . Parts Attached 30 | 5 2 5 9 1 8 Power 4 | 1 . . 2 . 1 Engine 2 | 1 . . 1 . . Core 2 | . . . 1 . 1 Reactor . | . . . . . . Propulsion 5 | . . 2 2 . 1 Treads . | . . . . . . Leg 2 | . . 2 . . . Wheel 1 | . . . . . 1 Hover . | . . . . . . Flight 2 | . . . 2 . . Utility 10 | 2 1 2 3 1 1 Device 5 | 1 1 1 1 . 1 Storage . | . . . . . . Processor 3 | . . 1 1 1 . Hackware . | . . . . . . Protection 2 | 1 . . 1 . . Artifact . | . . . . . . Weapon 11 | 2 1 1 2 . 5 Energy Gun 5 | 1 . 1 1 . 2 Energy Cannon 1 | . . . . . 1 Ballistic Gun 2 | 1 . . 1 . . Ballistic Cannon 2 | . . . . . 2 Launcher . | . . . . . . Special Weapon . | . . . . . . Impact Weapon . | . . . . . . Slashing Weapon . | . . . . . . Piercing Weapon . | . . . . . . Special Melee Weapon 1 | . 1 . . . . Unidentified Prototypes 1 | . . . . . 1 Parts Lost 11 | . . . . . 11 Power 1 | . . . . . 1 Propulsion 2 | . . . . . 2 Utility 4 | . . . . . 4 Weapon 4 | . . . . . 4 Highest Loss Streak 5 | . . . . . 5 To Critical Strikes . | . . . . . . Average Backups 3 | . . 1 4 5 5 Power . | . . . . . . Propulsion 1 | . . . 1 2 2 Utility 1 | . . . 2 2 2 Weapon . | . . . . 1 1 Tool/Special . | . . . . . . Unused Backups 3 | . . . . . 3 Power . | . . . . . . Propulsion 1 | . . . . . 1 Utility 2 | . . . . . 2 Weapon . | . . . . . . Tool/Special . | . . . . . . Average Slot Usage (%) 55 | . 17 38 77 82 60 Engine 5 | . 12 10 8 7 . Leg 2 | . . 8 6 . . Flight 5 | . . . 8 14 7 Device 15 | . 4 14 23 21 14 Processor 12 | . . 4 10 18 21 Protection 3 | . . . 5 7 6 Energy Gun 3 | . . 2 8 7 3 Ballistic Gun 3 | . . . 6 7 4 Peak Build Rating 31 | 2 2 16 27 31 31 Average Rating 16 | 1 1 7 23 29 23 On Entrance 12 | . 1 2 16 27 31 Avg Prop Armor Cover (%) 8 | . . . . . 8 Naked Turns . | . . . . . . Heaviest Build 15 | 4 4 8 15 14 14 Greatest Support 36 | 3 3 30 36 15 28 Greatest Overweight (x) 2 | 1 1 1 1 . 2 Average Overweight (x) . | . . . . . . Largest Inventory Capacity 5 | 5 5 5 5 5 5 Average Capacity 5 | 5 5 5 5 5 5 Most Carried 5 | . . 3 5 5 5 Average Carried 3 | . . 1 4 5 5 Final Capacity 5 | 5 5 5 5 5 5 Final Carried 5 | . . 3 5 5 5 Class Distribution -------------------- 100% | Hacker-Mutant Dominant Class ---------------- Hacker-Mutant | -10/Materials Hacker-Mutant | -9/Materials Hacker-Mutant | -8/Materials Hacker-Mutant | -7/Factory Hacker-Mutant | -7/Storage Resources | -11 -10 -9 -8 -7 -7 ----------- Run | Yrd Mat Mat Mat Fac Sto Matter Collected 536 | 168 82 . 146 . 140 Remotely . | . . . . . . Salvage Created 251 | . . . 56 . 195 Parts 11 | . . . 2 . 9 Haulers Intercepted . | . . . . . . Recyclers Shooed . | . . . . . . Parts Field Recycled . | . . . . . . Retrieved Matter . | . . . . . . Parts Self-Destructed . | . . . . . . Prevented . | . . . . . . Parts Restored . | . . . . . . Kills | -11 -10 -9 -8 -7 -7 ------- Run | Yrd Mat Mat Mat Fac Sto Combat Hostiles Destroyed 6 | . . . 1 . 5 Guns 5 | . . . 1 . 4 Cannons 1 | . . . . . 1 Classes Destroyed 3 | . . . 1 . 2 Swarmer 1 | . . . . . 1 Grunt 2 | . . . . . 2 Sentry 3 | . . . 1 . 2 Best Kill Streak 4 | . . . 1 . 4 Combat Bots Only 4 | . . . 1 . 4 Max Kills in Single Turn 1 | . . . 1 . 1 Gunslinging . | . . . . . . Exploded . | . . . . . . Melee . | . . . . . . Uniques/NPCs Destroyed . | . . . . . . Combat | -11 -10 -9 -8 -7 -7 -------- Run | Yrd Mat Mat Mat Fac Sto Hostile Shots Fired 403 | . 16 . 42 . 345 Missed 159 | . 4 . 26 . 129 Hits 244 | . 12 . 16 . 216 Projectile 244 | . 12 . 16 . 216 Critical Strikes 3 | . . . . . 3 Damage Taken 1623 | . 77 . 118 . 1428 Core 767 | . 42 . 22 . 703 Absorbed by Shields 26 | . . . . . 26 Redirected to Shielding 27 | . . . 9 . 18 Ignored by Resistances 1070 | . 52 . 73 . 945 Core Remaining (%) 94 | 100 83 100 96 . . Volleys Fired 37 | . . . 3 . 34 Largest 2 | . . . 2 . 2 Hottest 90 | . . . 75 . 90 Shots Fired 60 | . . . 6 . 54 Gun 53 | . . . 6 . 47 Cannon 7 | . . . . . 7 Launcher . | . . . . . . Special . | . . . . . . Kinetic 38 | . . . 3 . 35 Thermal 18 | . . . . . 18 Explosive . | . . . . . . Electromagnetic 4 | . . . 3 . 1 Robot Hit Streak 49 | . . . 9 . 49 Robot Miss Streak 1 | . . . . . 1 Penetration Max . | . . . . . . Secondary Targets 1 | . . . . . 1 Max Gunslinging Chain 1 | . . . . . 1 Shots Hit Robots 45 | . . . 6 . 39 Core Hits 18 | . . . 2 . 16 Critical Kills . | . . . . . . Critical Parts Destroyed 1 | . . . . . 1 Critical Strikes 3 | . . . . . 3 Burn 1 | . . . . . 1 Destroy 1 | . . . . . 1 Blast 1 | . . . . . 1 Melee Attacks . | . . . . . . Impact . | . . . . . . Slashing . | . . . . . . Piercing . | . . . . . . Sneak Attacks . | . . . . . . Combat Hostiles . | . . . . . . Follow-up Attacks . | . . . . . . Damage Inflicted 872 | . . . 113 . 759 Guns 733 | . . . 113 . 620 Cannons 139 | . . . . . 139 Explosions . | . . . . . . Melee . | . . . . . . Ramming . | . . . . . . Kinetic 652 | . . . 69 . 583 Thermal 151 | . . . . . 151 Explosive . | . . . . . . Electromagnetic 69 | . . . 44 . 25 Impact . | . . . . . . Slashing . | . . . . . . Piercing . | . . . . . . Highest Corruption 5 | . . . . . 5 Average Corruption 2 | . . . . . 2 Corruption Purged . | . . . . . . Corruption Blocked . | . . . . . . Effects 3 | . . . . . 3 Matter Fused 1 | . . . . . 1 Parts Rejected 1 | . . . . . 1 Data Loss (minor) 1 | . . . . . 1 Overload Shots . | . . . . . . Overflow Damage . | . . . . . . Projectiles . | . . . . . . Explosions . | . . . . . . Melee . | . . . . . . Knockbacks 2 | . . . . . 2 Impact . | . . . . . . Kinetic 1 | . . . . . 1 Secondary 1 | . . . . . 1 Self-Inflicted Damage . | . . . . . . Shots . | . . . . . . Rammed . | . . . . . . Targets Rammed . | . . . . . . Kicked . | . . . . . . Crushed . | . . . . . . Highest Temperature 345 | . . . 27 . 345 Average Temperature 64 | . . . 11 . 72 Received Heat Transfer 561 | . . . 54 . 507 Siege Activations . | . . . . . . Martial Activations . | . . . . . . Shielding Activations . | . . . . . . Robots Disrupted . | . . . . . . Combat Hostiles . | . . . . . . Robots Corrupted . | . . . . . . Combat Hostiles . | . . . . . . Parts Fried . | . . . . . . Impact Corruptions . | . . . . . . Robots Melted . | . . . . . . Combat Hostiles . | . . . . . . Parts Melted 1 | . . . . . 1 Heat Transferred 444 | . . . . . 444 Parts Sabotaged . | . . . . . . Parts Stolen . | . . . . . . Parts Stripped . | . . . . . . Power Chain Reactions . | . . . . . . Alert | -11 -10 -9 -8 -7 -7 ------- Run | Yrd Mat Mat Mat Fac Sto Maximum Alert Level . | . . . . . . Low Security (%) 100 | 100 100 100 100 100 100 Level 1 . | . . . . . . Level 2 . | . . . . . . Level 3 . | . . . . . . Level 4 . | . . . . . . Level 5 . | . . . . . . High Security . | . . . . . . Max Security . | . . . . . . Peak Influence 75 | . . . 30 15 75 Initial 4 | . . . . 4 4 Average 6 | . . . 4 4 14 Influence Increases 210 | . . . 30 15 165 Destroy 0b10 Robot/C 120 | . . . 20 . 100 Destroy Leader 30 | . . . 10 . 20 Partial Spotted 30 | . . . . 15 15 Lose Combat Pursuer 30 | . . . . . 30 Influence Decreases 210 | . . . 15 15 180 Entered New Map 22 | . . . . 11 11 Time Decay 143 | . . . 15 4 124 Lost Part 45 | . . . . . 45 Squads Dispatched 6 | . . . 3 . 3 Investigation . | . . . . . . Extermination 1 | . . . . . 1 Reinforcement 5 | . . . 3 . 2 Assault . | . . . . . . Garrison . | . . . . . . Intercept . | . . . . . . Searches Triggered . | . . . . . . Construction Impeded . | . . . . . . Haulers Reinforced . | . . . . . . Active Scanning Responses . | . . . . . . Cargo Convoy Interrupts . | . . . . . . Stealth | -11 -10 -9 -8 -7 -7 --------- Run | Yrd Mat Mat Mat Fac Sto Distress Signals 3 | . . . 1 . 2 Communications Jammed . | . . . . . . Distress Signals . | . . . . . . Times Spotted 40 | . 2 . 13 . 25 Peak Tracking Total 15 | . 2 . 11 . 15 Tactical Retreats 2 | . . . . . 2 Traps | -11 -10 -9 -8 -7 -7 ------- Run | Yrd Mat Mat Mat Fac Sto Traps Triggered 3 | . 1 . . . 2 Indirectly . | . . . . . . Trap Hack Attempts . | . . . . . . Triggered . | . . . . . . Disarmed . | . . . . . . Reprogrammed . | . . . . . . Reused . | . . . . . . Traps Extracted . | . . . . . . Installed . | . . . . . . Triggered . | . . . . . . Machines | -11 -10 -9 -8 -7 -7 ---------- Run | Yrd Mat Mat Mat Fac Sto Machines Disabled . | . . . . . . Max in Single Turn . | . . . . . . Machines Repaired . | . . . . . . Machines Dismantled . | . . . . . . Machines Sabotaged . | . . . . . . Overloaded Fab Kills . | . . . . . . Hacking | -11 -10 -9 -8 -7 -7 --------- Run | Yrd Mat Mat Mat Fac Sto Machines Accessed 5 | . 1 1 . . 3 Terminals 3 | . . 1 . . 2 Fabricators . | . . . . . . Repair Stations . | . . . . . . Recycling Units 2 | . 1 . . . 1 Scanalyzers . | . . . . . . Garrison Access . | . . . . . . Total Hacks 10 | . 1 1 . . 8 Successful 9 | . 1 1 . . 7 Failed 1 | . . . . . 1 Catastrophic . | . . . . . . Database Lockouts . | . . . . . . Manual 1 | . . . . . 1 Terminals 3 | . . 1 . . 2 Fabricators . | . . . . . . Repair Stations . | . . . . . . Recycling Units 7 | . 1 . . . 6 Scanalyzers . | . . . . . . Garrison Access . | . . . . . . Terminal Hacks 3 | . . 1 . . 2 Locate Traps 1 | . . . . . 1 Zone Layout 2 | . . 1 . . 1 Fabricator Hacks . | . . . . . . Repair Station Hacks . | . . . . . . Recycling Unit Hacks 6 | . 1 . . . 5 Report Inventory 5 | . 1 . . . 4 Retrieve Components 1 | . . . . . 1 Scanalyzer . | . . . . . . Garrison Access Hacks . | . . . . . . Unauthorized Hacks . | . . . . . . Terminals . | . . . . . . Fabricators . | . . . . . . Repair Stations . | . . . . . . Recycling Units . | . . . . . . Scanalyzers . | . . . . . . Garrison Access . | . . . . . . Data Cores Recovered . | . . . . . . Used . | . . . . . . Hacking Detections 3 | . . . . . 3 Full Trace Events . | . . . . . . Feedback Events . | . . . . . . Feedback Blocked . | . . . . . . Robot Schematics Acquired . | . . . . . . Robots Built . | . . . . . . Authchips . | . . . . . . Time . | . . . . . . Total Robot Build Rating . | . . . . . . Part Schematics Acquired . | . . . . . . Parts Built . | . . . . . . Authchips . | . . . . . . Time . | . . . . . . Total Part Build Rating . | . . . . . . Part Studies Acquired . | . . . . . . Parts Repaired . | . . . . . . Time . | . . . . . . Parts Recycled . | . . . . . . Recycled Matter . | . . . . . . Retrieved Matter . | . . . . . . Retrieved Components 3 | . . . . . 3 Parts Scanalyzed . | . . . . . . Part Schematics Acquired . | . . . . . . Parts Damaged . | . . . . . . Bothacking | -11 -10 -9 -8 -7 -7 ------------ Run | Yrd Mat Mat Mat Fac Sto Used RIF Installer . | . . . . . . Robots Hacked . | . . . . . . Non-combat . | . . . . . . Combat . | . . . . . . Robot Hacks Applied . | . . . . . . Relay Couplers Released . | . . . . . . Fabnet Peak Effective % . | . . . . . . Robots Rewired . | . . . . . . Allies Hacked . | . . . . . . Hacks Repelled . | . . . . . . Allies | -11 -10 -9 -8 -7 -7 -------- Run | Yrd Mat Mat Mat Fac Sto Total Allies . | . . . . . . Largest Group . | . . . . . . Highest-Rated Group . | . . . . . . Highest-Rated Ally . | . . . . . . Total Orders . | . . . . . . Ally Attacks . | . . . . . . Total Damage . | . . . . . . Kills . | . . . . . . Allies Corrupted . | . . . . . . Allies Melted . | . . . . . . Intel | -11 -10 -9 -8 -7 -7 ------- Run | Yrd Mat Mat Mat Fac Sto Active Infowar (turns) 501 | 7 47 140 152 22 133 Sensors 378 | 7 . 64 152 22 133 Seismic 374 | . 47 140 152 22 13 Robot Analysis Total . | . . . . . . Derelict Logs Recovered . | . . . . . . Drone Launches . | . . . . . . Drone Recoveries . | . . . . . . Exploration | -11 -10 -9 -8 -7 -7 ------------- Run | Yrd Mat Mat Mat Fac Sto Turns Passed 776 | 42 94 140 152 22 326 Spaces Moved 1053 | 60 134 121 242 53 443 Core 454 | 60 134 76 2 . 182 Treads . | . . . . . . Legs 80 | . . 45 35 . . Wheels 14 | . . . . . 14 Hover . | . . . . . . Flight 505 | . . . 205 53 247 Fastest Speed 34 | 50 50 100 34 34 34 Average Speed 55 | 54 67 107 51 34 43 Slowest Speed 150 | 100 100 120 120 34 150 Overloaded Moves . | . . . . . . Propulsion Burnouts . | . . . . . . Robots Hopped 1 | . . . . . 1 Potential Cave-ins . | . . . . . . Cave-ins Triggered . | . . . . . . Exploration Rate (%) 25 | 3 27 21 35 2 66 Regions Visited 5 Branch Regions 1 Pre-discovered Areas . | . . . . . . Known Exits Taken 5 | 1 1 1 1 1 . Unknown Exits Taken . | . . . . . . Scrap Searched . | . . . . . . Spaces Dug . | . . . . . . Terrain Destroyed . | . . . . . . Melee . | . . . . . . Projectile . | . . . . . . AOE . | . . . . . . Terrain Rammed . | . . . . . . Walls Destroyed . | . . . . . . Machines Disabled . | . . . . . . Actions | -11 -10 -9 -8 -7 -7 --------- Run | Yrd Mat Mat Mat Fac Sto Total 1167 | 68 137 128 259 55 520 Wait 22 | . 1 . . . 21 Move 1046 | 59 133 120 241 52 441 Hop 1 | . . . . . 1 Pick Up 3 | . . 3 . . . Fast Attach 29 | 5 2 5 7 2 8 Attach 1 | . . . 1 . . Detach 2 | . . . 2 . . Swap 2 | . . . 2 . . Drop 13 | 4 1 . 3 1 4 Fire 37 | . . . 3 . 34 Melee . | . . . . . . Ram . | . . . . . . Kick . | . . . . . . Crush . | . . . . . . Escape Stasis 11 | . . . . . 11 Rewire . | . . . . . . Trap . | . . . . . . Miscellaneous . | . . . . . . Route ------- -11/Scrapyard -10/Materials -9/Materials -8/Materials -7/Factory -7/Storage (discovered 1 exit: Rec) History --------- Turn | Location | Event 15 | -11/Scrapyard | Identified exit to Materials 15 | -11/Scrapyard | Discovered exit to Materials (range 15) 43 | -11/Scrapyard | Entered Materials 43 | -10/Materials | Evolved 1 slot: Utility x1 135 | -10/Materials | Identified exit to Materials 135 | -10/Materials | Discovered exit to Materials (range 3) 137 | -10/Materials | Entered another Materials area 137 | -9/Materials | Evolved 2 slots: Utility x2 252 | -9/Materials | Identified exit to Materials 252 | -9/Materials | Discovered exit to Materials (range 8) 277 | -9/Materials | Entered another Materials area 277 | -8/Materials | Evolved 2 slots: Utility x2 314 | -8/Materials | Build established: Hacker-Mutant 425 | -8/Materials | Identified exit to Factory 425 | -8/Materials | Discovered exit to Factory (range 13) 429 | -8/Materials | Entered Factory 429 | -7/Factory | Evolved 2 slots: Utility x2 446 | -7/Factory | Identified exit to Storage 446 | -7/Factory | Discovered exit to Storage (range 4) 451 | -7/Factory | Entered Storage 509 | -7/Storage | Identified exit to Recycling 509 | -7/Storage | Discovered exit to Recycling (range 10) 679 | -7/Storage | Lost 5 parts (1p2n2w) 732 | -7/Storage | Core integrity fell below 50% 749 | -7/Storage | Core integrity fell below 20% 777 | -7/Storage | Destroyed by Y-54 Guardian with Gatling Laser Last Messages --------------- U-05 Engineer destroyed. K-01 Serf collects debris. U-05 Engineer lays Concrete. Acquired Assault Cannon. System corrupted: Utility Shielding rejected. S-27 Virus knocked back. [Achievement: Bumper Bots] S-27 Virus destroyed. Y-54 Guardian Lgt. Treads blasted off. ALERT: Potential suspicious activity detected, Programmers report to Storage Zone 7X. K-01 Serf collects debris. Dropped Assault Cannon. Weight Redist. System destroyed. K-01 Serf collects debris. R-06 Scavenger collects Lgt. Treads. K-01 Serf collects debris. Acquired 2 matter. System corrupted: Matter fused (-9). Imp. Heat Sink destroyed. Map ----- +----------------------------------------------------+ | ## """ #???????????????????????? | | ############## ## """ #???????????????????????? | | #????##??????# ## #???????????????????????? | | #????# ????# + #??##???????????????????? | | #????? """ ??# # #? T#?????????########### | | #????# """ # ####+###+###????????# # | | #????# """ + #????????# """""" # | | ##+####?# # #????????# "????" # | | # ########## #????????# "????" + | | # + ^^ #????????# """""" # | | # ????# * = ! #????????# # | | # ???#=%! ]]]*!! % ##+##????# # | | # ??#==* ]!%]]%= k + # | | #?? ?#%##############Y#####+#################### | | #####/## #????????????#Y#??????????## # | | #????????????# #??????????# """ """ # | | #????????????#Y###?????????# """ """ # | | !!/ ##/######???????#Y #?????????# ] """ """ # | | !/ # #???????# #?????????# # | | !// # """ ##???????# #?????????#+#####+###### | | # """ #????????#Y ########### ### ##### | | + """ #?????##?# | | "T"## # #?????#T?# | | ##### # #?????" # ############### # | | ????# ####+###?????" # #?????????########## | | ????# #????????????" + @#??####???# #?# | | ????# #????????????####p ###"""#???# #?# | | ???? ???????????????# # #"T"##### ### | | ???? ???????????????# # # # | | ???? ?????????####### # # + | | ????###?????????# # # """"# # | | ????????????????# # # """"# # | | ????????????????# """ # + """"# # | | ????????????????# """ #s s# """"# # | | ????????????????# """ # + # # """ | | ????????????# # #Y # # # """ | | ????????????# / """ g ########### # """ | | ????????????# # """ #####?????????# # !%= | | ????????????# ?# """ #?????????????######## !! | | ????????????# ??# #????????????????#####+#T### | | ????????????????# #????????????????## ##### | | ????????????????# #????????????????## T#### | | ????????????????## ####????????????????###"""##### | | ?????????????????###???????????????????## ### | | ???????????????????????????????????????## ##" | | ???????????????????????????????????????## ### | | ???????????????????????????????????????## ### | | ???????????????????????????????????????########### | | ???????????????????????????????????????########### | | ?????????????????????????????????????????????????? | +----------------------------------------------------+ Best States ------------- Heat Dissipation 48 Energy Generation 14 Energy Capacity 160 Matter Stores 300 Matter Capacity 300 Sight Range 16 Robot Scan Range 15 Terrain Scan Density 210 Additional Mass Support 6 Resistance: KI 35 Resistance: TH 35 Resistance: EX 35 Resistance: EM 35 Resistance: I 35 Resistance: S 35 Resistance: P 35 Utility Shielding 33 Evasion (%) 63 Targeting Accuracy 8 Target Analysis 5 Offensive Hacking 20 Item Schematics ----------------- None Robot Schematics ------------------ None Fabricated ------------ Nothing Repaired ---------- Nothing Studied --------- None Alien Tech Used ----------------- None Achievements -------------- Bumper Bots Challenges ------------ None Game ------ Seed BlinkSuperquantumDirector Manual? 0 Play Time 00:28:53 Cumulative 11.0 hours Start 2026.06.29 @ 12:26:56 End 2026.06.29 @ 18:55:26 Sessions 3 Manual Loads 0 Difficulty Explorer Special Mode None Game No. 20 Rogue 0 Adventurer 2 Explorer 18 Win Type - Total 0 Types 0/0/0/0/0/0/0/0/0/0 Lore% 13 Gallery% 14 Achievement% 11 Wizard Run 0 Options --------- Layout 1 ASCII 0 Keyboard 0 Movement Mouse Keybinds 0 Fullscreen 1 Font 32/SmallcapsGlow Map View 77x35 Zoom Use 0% Tactical HUD 0 Map Filters NONE Filters NONE Steam 1 RUN: 0c570a34-a3f0-4ddc-b08d-af16c98d3c82